bitfinex-derivatives/quotes_BTCF0:USTF0_20251111
["timestamp","ask_amount","ask_price","bid_price","bid_amount"]
[1762819581919,0.46023613,106150.0,106140.0,0.06836775]
[1762819582224,0.46223613,106150.0,106140.0,0.16361465]
[1762819583318,0.46223613,106150.0,106140.0,0.06936775]
[1762819584225,0.46223613,106150.0,106140.0,0.16361475]
[1762819586739,0.005,106150.0,106140.0,0.16361465]
[1762819587020,0.3608,106170.0,106160.0,0.1525592]
[1762819587326,0.45721833,106170.0,106160.0,0.1525592]
[1762819587714,0.45721833,106170.0,106160.0,0.05833]
[1762819587920,0.36299803,106170.0,106160.0,0.1525592]
[1762819588221,0.36699803,106170.0,106160.0,0.1535592]
[1762819589020,0.00619803,106170.0,106160.0,0.5143592]
[1762819590126,0.00619803,106170.0,106160.0,0.1535592]
[1762819590828,0.00619803,106170.0,106160.0,0.5143592]
[1762819591828,0.00619803,106170.0,106160.0,0.58894841]
[1762819593628,0.004,106170.0,106160.0,0.58894841]
[1762819595030,0.004,106170.0,106160.0,0.73454841]
[1762819596128,0.0982203,106170.0,106160.0,0.73454841]
[1762819596428,0.10041833,106170.0,106160.0,0.73454841]
[1762819597021,0.00619803,106170.0,106160.0,0.73454841]
[1762819598634,0.10041833,106170.0,106160.0,0.73454841]
[1762819599025,0.10041833,106170.0,106160.0,0.64031921]
[1762819599219,0.63313278,106170.0,106160.0,0.01472]
[1762819599430,0.63313278,106170.0,106160.0,0.001]
[1762819599834,0.0942292,106160.0,106150.0,0.0001411]
[1762819600131,0.98742168,106160.0,106150.0,0.0001411]
[1762819600320,0.98742168,106160.0,106150.0,0.0138611]
[1762819601234,0.98842168,106160.0,106150.0,0.0138611]
[1762819602132,0.094238,106150.0,106140.0,0.01267]
[1762819602436,0.0942469,106140.0,106130.0,0.01267]
[1762819602629,0.98751938,106140.0,106130.0,0.01267]
[1762819602833,0.98755938,106140.0,106130.0,0.01267]
[1762819603036,0.98755938,106140.0,106130.0,0.03401]
[1762819603733,0.98755938,106140.0,106130.0,0.01267]
[1762819603925,0.98755938,106140.0,106130.0,0.01467]
[1762819604129,0.98755938,106140.0,106130.0,0.01667]
[1762819605433,0.98755938,106140.0,106130.0,0.03801]
[1762819605634,0.98755938,106140.0,106130.0,0.00344527]
[1762819605833,0.98755938,106140.0,106120.0,0.0138611]
[1762819605834,0.0942558,106130.0,106120.0,0.0001411]
[1762819606029,0.62916828,106130.0,106120.0,0.0001411]
[1762819606939,0.0942735,106110.0,106100.0,0.03517231]
[1762819607141,0.98790598,106110.0,106100.0,0.05678231]
[1762819607840,1.34870598,106110.0,106100.0,0.00011231]
[1762819608043,1.34870598,106110.0,106100.0,0.00111231]
[1762819609030,0.0942824,106100.0,106090.0,0.0138611]
[1762819609236,0.62919488,106100.0,106090.0,0.0138611]
[1762819610142,0.62928936,106100.0,106090.0,0.0158611]
[1762819610534,0.62928936,106100.0,106090.0,0.0168611]
[1762819610945,0.62928936,106100.0,106090.0,0.0600211]
[1762819613747,0.62928936,106100.0,106090.0,0.0168611]
[1762819614348,0.62928936,106100.0,106090.0,0.0383011]
[1762819614749,0.62928936,106100.0,106090.0,0.0601211]
[1762819615346,0.36309251,106100.0,106090.0,0.0601211]
[1762819615542,0.36309251,106100.0,106090.0,0.1544124]
[1762819615851,0.45737491,106100.0,106090.0,0.0601211]
[1762819616154,0.36309251,106100.0,106090.0,0.0601211]
[1762819616345,0.36309251,106100.0,106090.0,0.1544124]
[1762819617452,9.448e-05,106100.0,106090.0,0.32632685]
[1762819617847,9.448e-05,106100.0,106090.0,0.1544124]
[1762819618462,0.8138862,106120.0,106110.0,0.05696]
[1762819618754,0.45740423,106120.0,106110.0,0.1512335]
[1762819619662,0.36513913,106120.0,106110.0,0.1512335]
[1762819619854,0.46040373,106120.0,106110.0,0.05696]
[1762819620655,0.63031818,106120.0,106110.0,0.05896]
[1762819620855,0.62931818,106120.0,106110.0,0.01507]
[1762819621059,0.62931818,106120.0,106070.0,0.68282644]
[1762819621060,0.0942824,106100.0,106070.0,0.03437]
[1762819621264,0.62921258,106080.0,106070.0,0.01307]
[1762819621459,0.094309,106070.0,106060.0,0.01307]
[1762819621661,0.98818148,106070.0,106060.0,0.05696]
[1762819622959,0.98818148,106070.0,106060.0,0.01307]
[1762819622960,0.99118148,106070.0,106060.0,0.01307]
[1762819623357,0.99118148,106070.0,106060.0,0.05696]
[1762819625361,0.99118148,106070.0,106060.0,0.03437]
[1762819626165,0.99118148,106070.0,106060.0,0.01307]
[1762819627061,0.0943179,106060.0,106050.0,0.0001411]
[1762819627369,0.62923038,106060.0,106050.0,0.0571011]
[1762819627867,0.62923038,106060.0,106050.0,0.0345111]
[1762819628068,0.62923038,106060.0,106050.0,0.0132111]
[1762819628269,0.62923038,106060.0,106050.0,0.0001411]
[1762819628569,0.62923038,106060.0,106040.0,0.01317276]
[1762819628570,0.0943268,106050.0,106040.0,0.01317276]
[1762819628768,0.98859928,106050.0,106040.0,0.01317276]
[1762819628969,0.98859928,106050.0,106040.0,0.03447276]
[1762819629264,0.81668483,106050.0,106040.0,0.03447276]
[1762819629675,0.98859928,106050.0,106040.0,0.03547276]
[1762819629866,0.72235803,106050.0,106040.0,0.05906276]
[1762819630070,0.81668483,106050.0,106040.0,0.05906276]
[1762819630671,0.36299803,106050.0,106040.0,0.15339846]
[1762819630973,0.4552589,106060.0,106050.0,0.05696]
[1762819631165,0.45745693,106060.0,106050.0,0.05696]
[1762819631674,0.45745693,106060.0,106050.0,0.03437]
[1762819631864,0.45745693,106060.0,106040.0,0.01517276]
[1762819631865,0.0943267,106050.0,106040.0,0.01517276]
[1762819632064,0.98863918,106050.0,106040.0,0.01417276]
[1762819632273,0.98863918,106050.0,106040.0,0.01317276]
[1762819632771,0.98863918,106050.0,106040.0,0.03447276]
[1762819633272,0.81672473,106050.0,106040.0,0.05806276]
[1762819633572,0.81672473,106050.0,106040.0,0.05906276]
[1762819634866,0.72239803,106050.0,106040.0,0.05906276]
[1762819635070,0.36299803,106050.0,106040.0,0.15339836]
[1762819636375,0.3608,106050.0,106040.0,0.32531281]
[1762819636571,0.3609411,106060.0,106050.0,0.1512868]
[1762819636769,0.36313913,106060.0,106050.0,0.1512868]
[1762819637762,0.45845683,106060.0,106050.0,0.1512868]
[1762819638775,0.45845683,106060.0,106050.0,0.2968868]
[1762819639376,0.45845683,106060.0,106050.0,0.20256]
[1762819640368,0.36413913,106060.0,106050.0,0.2968866]
[1762819640567,0.36413913,106060.0,106050.0,0.1512866]
[1762819640770,0.00333913,106060.0,106050.0,0.5120866]
[1762819643180,0.0011411,106060.0,106050.0,0.5120866]
[1762819644779,0.0011411,106060.0,106050.0,0.6576866]
[1762819645279,0.0011411,106060.0,106050.0,0.82960105]
[1762819645482,0.0011411,106060.0,106050.0,0.83160105]
[1762819645680,0.4551058,106080.0,106070.0,0.1511589]
[1762819645980,0.45730383,106080.0,106070.0,0.1511589]
[1762819646281,0.09650383,106080.0,106070.0,0.1511589]
[1762819646876,0.45730383,106080.0,106070.0,0.05685]
[1762819647083,0.62921828,106080.0,106070.0,0.01294]
[1762819647376,0.63021828,106080.0,106070.0,0.01294]
[1762819649485,0.65216269,106080.0,106070.0,0.01294]
[1762819649985,0.62951767,106080.0,106070.0,0.01294]
[1762819650184,0.60757326,106080.0,106070.0,0.01294]
[1762819650984,0.55311335,106080.0,106070.0,0.0349]
[1762819652084,0.55311335,106080.0,106070.0,0.05685]
[1762819652284,0.81750293,106080.0,106070.0,0.05685]
[1762819652580,0.36399803,106080.0,106070.0,0.1511594]
[1762819653786,0.00319803,106080.0,106070.0,0.1511594]
[1762819655086,0.00319803,106080.0,106070.0,0.1521594]
[1762819655481,0.00219803,106080.0,106070.0,0.1521594]
[1762819656384,0.00219803,106080.0,106070.0,0.2987594]
[1762819657086,0.09649853,106080.0,106070.0,0.20445]
[1762819657383,0.00219803,106080.0,106070.0,0.1531594]
[1762819657575,0.4552329,106090.0,106080.0,0.05685]
[1762819657774,0.45743093,106090.0,106080.0,0.05685]
[1762819658280,0.42347007,106090.0,106080.0,0.05685]
[1762819660185,0.42347007,106090.0,106080.0,0.1511505]
[1762819660486,0.42347007,106090.0,106080.0,0.05685]
[1762819662286,0.42347007,106090.0,106080.0,0.1242196]
[1762819662785,0.54092461,106090.0,106080.0,0.1242196]
[1762819663089,0.32917827,106090.0,106080.0,0.2185201]
[1762819663690,0.42346987,106090.0,106080.0,0.1242196]
[1762819664186,0.3895091,106090.0,106080.0,0.1242196]
[1762819664490,0.3895091,106090.0,106080.0,0.1262196]
[1762819664883,0.50696364,106090.0,106080.0,0.1262196]
[1762819665083,0.50696364,106090.0,106080.0,0.01494]
[1762819665483,0.50696364,106090.0,106080.0,0.002]
[1762819666787,0.50896364,106090.0,106080.0,0.001]
[1762819667589,0.0943005,106080.0,106070.0,0.05685]
[1762819667788,0.93371307,106080.0,106070.0,0.05685]
[1762819668990,0.93571307,106080.0,106070.0,0.05685]
[1762819669390,0.36599803,106080.0,106070.0,0.2185289]
[1762819669690,0.00519803,106080.0,106070.0,0.2185289]
[1762819670285,0.00519803,106080.0,106070.0,0.1511593]
[1762819670481,0.00419803,106080.0,106070.0,0.5119593]
[1762819670790,0.00419803,106080.0,106070.0,0.23605513]
[1762819671089,0.36499803,106080.0,106070.0,0.38265513]
[1762819671284,0.36299803,106080.0,106070.0,0.38365513]
[1762819671489,0.45729853,106080.0,106070.0,0.28934583]
[1762819672078,0.45729853,106080.0,106070.0,0.28834583]
[1762819672388,0.45829853,106080.0,106070.0,0.29134583]
[1762819672589,0.45829853,106080.0,106070.0,0.38665513]
[1762819672787,0.36399803,106080.0,106070.0,0.38665513]
[1762819672987,0.36399803,106080.0,106070.0,0.74557513]
[1762819674283,0.00319803,106080.0,106070.0,0.74557513]
[1762819675389,0.00319803,106080.0,106070.0,0.6606793]
[1762819676289,0.09749853,106080.0,106070.0,0.56637]
[1762819676589,0.57575307,106080.0,106070.0,0.20745]
[1762819676894,0.57575307,106080.0,106070.0,0.12963458]
[1762819677386,0.93455307,106080.0,106070.0,0.12963458]
[1762819677789,0.36399803,106080.0,106070.0,0.22394398]
[1762819677990,0.36399803,106080.0,106070.0,0.1561594]
[1762819678289,0.00319803,106080.0,106070.0,0.24105523]
[1762819680287,0.09749853,106080.0,106070.0,0.24105523]
[1762819681992,0.09749853,106080.0,106070.0,0.14674583]
[1762819682793,0.09749853,106080.0,106070.0,0.29234583]
[1762819683295,0.09749853,106080.0,106070.0,0.38665523]
[1762819684499,0.00319803,106080.0,106070.0,0.38665523]
[1762819684794,0.09749853,106080.0,106070.0,0.38665523]
[1762819685888,0.09749853,106080.0,106070.0,0.29234583]
[1762819686084,0.45829853,106080.0,106070.0,0.29234583]
[1762819687495,0.45829853,106080.0,106070.0,0.38665523]
[1762819690901,0.55223065,106080.0,106070.0,0.48058735]
[1762819692103,0.45793015,106080.0,106070.0,0.48058735]
[1762819692596,0.09713015,106080.0,106070.0,0.48058735]
[1762819692897,0.00319803,106080.0,106070.0,0.48058735]
[1762819693102,0.001,106080.0,106070.0,0.48058735]
[1762819693394,0.48124859,106090.0,106080.0,0.1520205]
[1762819693395,0.0001411,106090.0,106080.0,0.1520205]
[1762819693591,0.0001411,106090.0,106080.0,1.14406688]
[1762819694999,0.0001411,106090.0,106080.0,1.14706688]
[1762819695497,0.0001411,106090.0,106080.0,0.95920264]
[1762819695900,0.0001411,106090.0,106080.0,1.14706688]
[1762819697411,0.0001411,106090.0,106080.0,1.29266688]
[1762819699299,0.0001411,106090.0,106080.0,1.20788474]
[1762819699593,0.0001411,106090.0,106080.0,1.23191637]
[1762819699905,0.0944327,106090.0,106080.0,1.23228475]
[1762819700105,0.0944327,106090.0,106080.0,1.31702945]
[1762819700301,0.0001411,106090.0,106080.0,1.19869732]
[1762819700500,1.1e-06,106090.0,106080.0,1.19869732]
[1762819701000,0.54901092,106110.0,106100.0,0.0578]
[1762819701206,0.55120895,106110.0,106100.0,0.36512664]
[1762819701505,0.55120895,106110.0,106100.0,0.27119452]
[1762819702006,0.55320895,106110.0,106100.0,0.27119452]
[1762819702202,0.55320895,106110.0,106100.0,0.36547722]
[1762819702203,0.55320405,106110.0,106100.0,0.36547722]
[1762819702607,0.55420405,106110.0,106100.0,0.36547722]
[1762819703401,0.45993015,106110.0,106100.0,0.36547722]
[1762819703707,0.45993015,106110.0,106100.0,0.31380934]
[1762819703899,0.45793015,106110.0,106100.0,0.31380934]
[1762819704206,0.45693015,106110.0,106100.0,0.31380934]
[1762819704412,0.45693015,106110.0,106100.0,0.31480934]
[1762819704607,0.55120405,106110.0,106100.0,0.31480934]
[1762819704907,0.55120405,106110.0,106100.0,0.31680934]
[1762819705399,0.55120405,106110.0,106100.0,0.31680944]
[1762819706205,0.55120405,106110.0,106090.0,0.0848858]
[1762819706501,0.0942916,106090.0,106080.0,0.19904681]
[1762819706706,0.0943005,106080.0,106070.0,0.01294]
[1762819706902,0.0943005,106080.0,106060.0,0.0978547]
[1762819706903,0.0943094,106070.0,106060.0,0.01311]
[1762819707102,0.0943183,106060.0,106050.0,0.01311]
[1762819707300,1.00438057,106060.0,106050.0,0.01311]
[1762819707501,1.00438057,106060.0,106050.0,0.15173212]
[1762819707502,0.00219803,106060.0,106050.0,0.15173212]
[1762819707804,0.3609411,106070.0,106060.0,0.1521183]
[1762819707996,0.0001411,106070.0,106060.0,0.1521183]
[1762819708197,0.0001411,106070.0,106060.0,0.42472724]
[1762819708407,0.0001411,106070.0,106060.0,0.78552724]
[1762819710096,0.0001411,106070.0,106060.0,0.78652724]
[1762819710302,0.0001411,106070.0,106060.0,0.70278254]
[1762819710697,0.0001411,106070.0,106060.0,0.70178254]
[1762819710901,0.0954505,106070.0,106060.0,0.61146424]
[1762819712100,0.09764853,106070.0,106060.0,0.15673212]
[1762819712305,0.55238065,106070.0,106060.0,0.14743193]
[1762819712504,0.55238065,106070.0,106060.0,0.50707193]
[1762819712704,0.55238065,106070.0,106060.0,0.42244]
[1762819712911,0.55240969,106070.0,106060.0,0.0628]
[1762819715013,0.81832853,106070.0,106060.0,0.0628]
[1762819716212,0.81832853,106070.0,106060.0,0.13047637]
[1762819717916,0.81832853,106070.0,106060.0,0.27607637]
[1762819718212,0.99060079,106070.0,106060.0,0.27607637]
[1762819719117,0.99060079,106070.0,106060.0,0.2084]
[1762819721720,0.81832853,106070.0,106060.0,0.2084]
[1762819722115,0.81732853,106070.0,106060.0,0.2064]
[1762819722909,0.81732853,106070.0,106060.0,0.2054]
[1762819723812,0.81732853,106070.0,106060.0,0.0598]
[1762819724018,0.81720853,106070.0,106060.0,0.0598]
[1762819725713,0.81712853,106070.0,106060.0,0.0598]
[1762819725918,0.81712853,106070.0,106060.0,0.1541183]
[1762819726119,0.09664853,106070.0,106060.0,0.0598]
[1762819726421,0.81720853,106070.0,106060.0,0.0598]
[1762819726722,0.00233913,106070.0,106060.0,0.1541183]
[1762819727023,0.00233913,106070.0,106060.0,0.5138783]
[1762819727224,0.0001411,106070.0,106060.0,1.0202783]
[1762819728217,0.0944505,106070.0,106060.0,1.0202783]
[1762819730610,0.09664853,106070.0,106060.0,1.0202783]
[1762819730923,0.09664853,106070.0,106060.0,0.92596]
[1762819731316,0.09664853,106070.0,106060.0,1.0202783]
[1762819734432,0.09664853,106070.0,106060.0,0.92596]
[1762819734923,0.09664853,106070.0,106060.0,1.0202783]
[1762819735124,0.00233913,106070.0,106060.0,1.0202783]
[1762819735825,0.00233913,106070.0,106060.0,1.11421903]
[1762819736227,0.09664853,106070.0,106060.0,1.19885096]
[1762819736625,0.09664853,106070.0,106060.0,1.18840968]
[1762819738828,0.09664853,106070.0,106060.0,1.10491023]
[1762819739027,0.00233913,106070.0,106060.0,1.10491023]
[1762819739821,0.0001411,106070.0,106060.0,1.25799539]
[1762819740326,0.4550962,106090.0,106080.0,0.1515805]
[1762819740526,0.45729423,106090.0,106080.0,0.5109805]
[1762819740720,0.36299803,106090.0,106080.0,0.5109805]
[1762819740921,0.3608,106090.0,106080.0,0.5109805]
[1762819741126,0.4550883,106100.0,106090.0,0.1515716]
[1762819741330,0.45728633,106100.0,106090.0,0.1515716]
[1762819742635,0.45728633,106100.0,106090.0,0.1525716]
[1762819742824,0.09648633,106100.0,106090.0,0.1525716]
[1762819743132,0.09948633,106100.0,106090.0,0.1535716]
[1762819743527,0.00519803,106100.0,106090.0,0.30665676]
[1762819743929,0.00219803,106100.0,106090.0,0.30765676]
[1762819744434,0.09648083,106100.0,106090.0,0.1545716]
[1762819745031,0.09648083,106100.0,106090.0,0.06028]
[1762819745731,0.09648083,106100.0,106090.0,0.1545717]
[1762819746329,0.00219803,106100.0,106090.0,0.1545717]
[1762819748232,0.09648073,106100.0,106090.0,0.5153717]
[1762819748632,0.4552203,106110.0,106100.0,0.1515627]
[1762819748828,0.09661833,106110.0,106100.0,0.1515627]
[1762819749426,0.0001411,106110.0,106100.0,0.1515627]
[1762819749632,0.4550693,106120.0,106110.0,0.1515539]
[1762819749633,0.3608,106120.0,106110.0,0.1515539]
[1762819749939,0.455065,106120.0,106110.0,0.1515539]
[1762819750128,0.45726303,106120.0,106110.0,0.0669537]
[1762819750829,0.09846303,106120.0,106110.0,0.1622276]
[1762819751336,0.10046303,106120.0,106110.0,0.1622276]
[1762819753837,0.09846303,106120.0,106110.0,0.1622276]
[1762819754028,0.09846303,106120.0,106110.0,0.1632276]
[1762819754334,0.09846303,106120.0,106110.0,0.5240276]
[1762819754837,0.00419803,106120.0,106110.0,0.5240276]
[1762819755037,0.09646303,106120.0,106110.0,0.5230276]
[1762819755330,0.09646303,106120.0,106110.0,0.5240276]
[1762819755532,0.09646303,106120.0,106110.0,0.6696276]
[1762819756229,0.00219803,106120.0,106110.0,0.6696276]
[1762819756429,0.455204,106130.0,106120.0,0.151545]
[1762819756628,0.45740203,106130.0,106120.0,0.151545]
[1762819757636,0.45840203,106130.0,106120.0,0.151545]
[1762819758435,0.45940203,106130.0,106120.0,0.151545]
[1762819760038,0.09860203,106130.0,106120.0,0.151545]
[1762819762842,0.09860203,106130.0,106120.0,0.05728]
[1762819763240,0.09860203,106130.0,106120.0,0.151545]
[1762819764445,0.09860203,106130.0,106120.0,0.05728]
[1762819765142,0.09860203,106130.0,106120.0,0.151545]
[1762819765740,0.09860203,106130.0,106120.0,0.05728]
[1762819766343,0.09860203,106130.0,106120.0,0.151545]
[1762819767641,0.09860203,106130.0,106120.0,0.05728]
[1762819767943,0.09860203,106130.0,106120.0,0.20288]
[1762819768947,0.45940203,106130.0,106120.0,0.20288]
[1762819769350,0.45940203,106130.0,106120.0,0.297145]
[1762819770149,0.36513913,106130.0,106120.0,0.297145]
[1762819770345,0.45939523,106130.0,106120.0,0.297145]
[1762819770549,0.36513913,106130.0,106120.0,0.297145]
[1762819771450,0.45939523,106130.0,106120.0,0.38055695]
[1762819771842,0.45939523,106130.0,106120.0,0.297145]
[1762819772750,0.36513913,106130.0,106120.0,0.297145]
[1762819773253,0.36513913,106130.0,106120.0,0.38055695]
[1762819773641,0.00433913,106130.0,106120.0,0.74135695]
[1762819774651,0.09859533,106130.0,106120.0,0.74135695]
[1762819774847,0.09859533,106130.0,106120.0,0.74134994]
[1762819775151,0.00433913,106130.0,106120.0,0.74134994]
[1762819776251,0.09859523,106130.0,106120.0,0.74134994]
[1762819776751,0.09659523,106130.0,106120.0,0.74334994]
[1762819777847,0.09659523,106130.0,106120.0,1.10210994]
[1762819778753,0.18000017,106130.0,106120.0,1.10210994]
[1762819779651,0.18000017,106130.0,106120.0,1.18674187]
[1762819781155,0.09659523,106130.0,106120.0,1.18674187]
[1762819782555,0.09659523,106130.0,106120.0,1.27014681]
[1762819782855,0.09659523,106130.0,106120.0,1.18674187]
[1762819783056,0.18000017,106130.0,106120.0,1.18674187]
[1762819784450,0.0001411,106130.0,106120.0,1.27014681]
[1762819785052,0.3608,106140.0,106120.0,1.27014681]
[1762819785357,0.0942441,106150.0,106140.0,0.1532772]
[1762819785558,0.0942441,106150.0,106140.0,0.66306354]
[1762819786260,0.17764904,106150.0,106140.0,0.66306354]
[1762819786457,0.0942383,106150.0,106140.0,0.70137848]
[1762819786653,0.0942383,106150.0,106140.0,0.67987407]
[1762819786852,0.0942383,106150.0,106140.0,1.04067407]
[1762819787056,0.18164324,106150.0,106140.0,1.04167407]
[1762819787257,0.08740494,106150.0,106140.0,1.04167407]
[1762819787458,0.004,106150.0,106140.0,1.04167407]
[1762819787855,0.004,106150.0,106140.0,1.12507901]
[1762819788649,0.53842874,106170.0,106160.0,0.0942294]
[1762819788855,0.54062677,106170.0,106160.0,0.66299185]
[1762819789153,0.09642183,106170.0,106160.0,0.66299185]
[1762819789463,0.17982677,106170.0,106160.0,0.66299185]
[1762819789656,0.09642183,106170.0,106160.0,0.95606434]
[1762819789962,0.09642183,106170.0,106160.0,0.95729133]
[1762819790164,0.09842183,106170.0,106160.0,1.12410121]
[1762819790462,0.002,106170.0,106160.0,1.02369187]
[1762819790662,0.0952206,106170.0,106160.0,1.02369187]
[1762819790964,0.0952206,106170.0,106160.0,1.02469187]
[1762819792262,0.0942206,106170.0,106160.0,1.02569187]
[1762819795266,0.0942206,106170.0,106160.0,0.93146247]
[1762819795670,0.0942206,106170.0,106160.0,0.57066247]
[1762819796070,0.17762554,106170.0,106160.0,0.57066247]
[1762819796274,0.17982357,106170.0,106160.0,0.57066247]
[1762819798364,0.54062357,106170.0,106160.0,0.48709753]
[1762819798863,0.54062357,106170.0,106160.0,0.58132693]
[1762819799262,0.08560297,106170.0,106160.0,0.66473187]
[1762819799471,0.17982357,106170.0,106160.0,0.66473187]
[1762819800066,0.17982357,106170.0,106160.0,0.81033187]
[1762819800569,0.54062357,106170.0,106160.0,0.71610247]
[1762819801468,0.54062357,106170.0,106160.0,0.81033187]
[1762819802070,0.17982357,106170.0,106160.0,0.81033187]
[1762819802268,0.08560297,106170.0,106160.0,0.81033187]
[1762819803268,0.7194,106190.0,106170.0,0.1513806]
[1762819803269,0.4550071,106190.0,106170.0,0.1513806]
[1762819803464,0.54061007,106190.0,106180.0,0.05716]
[1762819803661,0.54061007,106190.0,106180.0,0.41544]
[1762819803866,0.54061007,106190.0,106180.0,0.59305664]
[1762819804468,0.54061007,106190.0,106180.0,0.41544]
[1762819804669,0.54261007,106190.0,106180.0,0.41544]
[1762819804865,0.54261007,106190.0,106180.0,0.42516927]
[1762819805070,0.62701501,106190.0,106180.0,0.06688927]
[1762819805270,0.62701501,106190.0,106180.0,0.0131]
[1762819805567,0.0942117,106180.0,106170.0,0.0345311]
[1762819805767,0.98225961,106180.0,106170.0,0.0345311]
[1762819806168,0.98225961,106180.0,106170.0,0.0132411]
[1762819806371,1.06566455,106180.0,106170.0,0.0132411]
[1762819806570,1.06566455,106180.0,106170.0,0.0001411]
[1762819807580,1.06666455,106180.0,106170.0,0.0001411]
[1762819810781,0.025,106170.0,106120.0,0.1184515]
[1762819810974,0.025,106170.0,106070.0,0.4023777]
[1762819810975,0.0943005,106080.0,106070.0,0.4023777]
[1762819811179,0.0943094,106070.0,106060.0,0.0131]
[1762819811474,0.0943094,106070.0,106050.0,0.0131]
[1762819811475,0.0943183,106060.0,106050.0,0.0131]
[1762819811678,0.72379803,106060.0,106050.0,0.05716]
[1762819811886,0.3609411,106070.0,106060.0,0.04406]
[1762819812077,0.45755145,106070.0,106060.0,0.16003687]
[1762819812384,0.54195639,106070.0,106060.0,0.07663193]
[1762819812771,0.54095639,106070.0,106060.0,0.07663193]
[1762819812971,0.45955145,106070.0,106060.0,0.07663193]
[1762819813172,0.56396117,106070.0,106060.0,0.07663193]
[1762819813385,0.0943182,106060.0,106050.0,0.05716]
[1762819813573,0.56372595,106060.0,106050.0,0.08973193]
[1762819814284,0.56172595,106060.0,106050.0,0.08973193]
[1762819815289,0.56272595,106060.0,106050.0,0.08973193]
[1762819815491,0.92608595,106060.0,106050.0,0.08973193]
[1762819815982,0.82167623,106060.0,106050.0,0.08973193]
[1762819816287,0.92608595,106060.0,106050.0,0.08973193]
[1762819817374,0.45831623,106060.0,106050.0,0.08973193]
[1762819817575,0.81911623,106060.0,106050.0,0.08973193]
[1762819817779,0.92352595,106060.0,106050.0,0.08973193]
[1762819818087,0.92352595,106060.0,106050.0,0.06696193]
[1762819820182,1.28688595,106060.0,106050.0,0.06696193]
[1762819820884,1.28688595,106060.0,106050.0,0.08973193]
[1762819821984,1.18247623,106060.0,106050.0,0.05716]
[1762819822176,1.28688595,106060.0,106050.0,0.0131]
[1762819824496,1.28688595,106060.0,106050.0,0.05873]
[1762819825890,1.28688595,106060.0,106050.0,0.0131]
[1762819828083,1.28688595,106060.0,106050.0,0.03543]
[1762819828789,1.28688595,106060.0,106050.0,0.05873]
[1762819831587,1.28688595,106060.0,106050.0,0.0131]
[1762819831792,0.0943271,106050.0,106040.0,0.0132411]
[1762819831996,0.56182539,106050.0,106040.0,0.04581303]
[1762819833087,0.56182539,106050.0,106040.0,0.06914303]
[1762819833991,0.56182539,106050.0,106040.0,0.09344303]
[1762819834193,0.56182539,106050.0,106040.0,0.0021411]
[1762819834994,0.62458119,106050.0,106040.0,0.0021411]
[1762819835299,0.65057297,106050.0,106040.0,0.0159311]
[1762819838086,0.65057297,106050.0,106040.0,0.0382611]
[1762819838595,0.65057297,106050.0,106040.0,0.0615611]
[1762819839506,0.70107748,106050.0,106040.0,0.0615611]
[1762819840191,0.65057297,106050.0,106040.0,0.0615611]
[1762819841000,0.71791232,106050.0,106040.0,0.0615611]
[1762819841701,0.72091232,106050.0,106040.0,0.0615611]
[1762819842203,0.65357297,106050.0,106040.0,0.0615611]
[1762819842499,0.65357297,106050.0,106040.0,0.0605611]
[1762819842695,0.65557297,106050.0,106040.0,0.0605611]
[1762819843098,0.72291232,106050.0,106040.0,0.0605611]
[1762819843306,0.65557297,106050.0,106040.0,0.0605611]
[1762819844808,0.65557297,106050.0,106040.0,0.0149311]
[1762819845303,0.094336,106040.0,106030.0,0.03543]
[1762819845596,0.98006816,106040.0,106030.0,0.0131]
[1762819845794,0.0943449,106030.0,106020.0,0.05873]
[1762819845992,0.5670205,106030.0,106020.0,0.09130193]
[1762819846896,0.61766009,106030.0,106020.0,0.09130193]
[1762819847297,0.5670205,106030.0,106020.0,0.09130193]
[1762819847599,0.5680205,106030.0,106020.0,0.09130193]
[1762819849805,0.0943538,106020.0,106010.0,0.0139311]
[1762819850000,1.01294913,106020.0,106010.0,0.0001411]
[1762819850200,0.0943627,106010.0,106000.0,0.0139015]
[1762819850395,0.56701136,106010.0,106000.0,0.06782343]
[1762819850808,0.56701136,106010.0,106000.0,0.09055343]
[1762819851008,0.56701136,106010.0,106000.0,0.06782343]
[1762819851207,0.56701136,106010.0,106000.0,0.04647343]
[1762819851505,0.56701136,106010.0,106000.0,0.0139015]
[1762819852605,0.56801136,106010.0,106000.0,0.0179015]
[1762819853413,0.56701136,106010.0,106000.0,0.0382515]
[1762819853617,0.56701136,106010.0,106000.0,0.0589815]
[1762819853802,0.56701136,106010.0,106000.0,0.0599815]
[1762819854315,0.4834286,106010.0,106000.0,0.0599815]
[1762819854521,0.56701136,106010.0,106000.0,0.0599815]
[1762819857915,0.56701136,106010.0,106000.0,0.0159015]
[1762819860215,0.65059412,106010.0,106000.0,0.0021115]
[1762819860512,0.65059412,106010.0,105980.0,0.01291]
[1762819860513,0.0943805,105990.0,105980.0,0.01291]
[1762819860713,0.0943983,105970.0,105960.0,0.01342]
[1762819860920,1.26393909,105970.0,105960.0,0.05791]
[1762819861115,0.83209724,105970.0,105960.0,0.05791]
[1762819861309,0.74859148,105970.0,105960.0,0.23589996]
[1762819861503,0.72387503,105970.0,105960.0,0.7523172]
[1762819862022,0.72387503,105970.0,105960.0,0.7543172]
[1762819862517,0.72387503,105970.0,105960.0,0.65991]
[1762819862719,0.87992396,105970.0,105960.0,0.66210803]
[1762819863114,0.87992396,105970.0,105960.0,0.06210803]
[1762819863413,1.24320396,105970.0,105960.0,0.06410803]
[1762819863920,1.35101385,105970.0,105960.0,0.01961803]
[1762819864102,1.35101385,105970.0,105960.0,0.04175803]
[1762819864306,1.35101385,105970.0,105960.0,0.01961803]
[1762819864507,1.32678672,105970.0,105960.0,0.04175803]
[1762819865201,1.35100266,105970.0,105960.0,0.004]
[1762819865407,0.094425,105940.0,105930.0,0.01342]
[1762819865614,1.26278036,105940.0,105930.0,0.06010803]
[1762819865804,1.26288786,105940.0,105930.0,0.06010803]
[1762819866717,1.26288786,105940.0,105930.0,0.01542]
[1762819866718,1.36147062,105940.0,105930.0,0.01542]
[1762819867026,1.34786065,105940.0,105930.0,0.002]
[1762819867224,1.34786065,105940.0,105930.0,0.00329299]
[1762819867718,1.34786065,105940.0,105930.0,0.01671299]
[1762819868016,1.33286065,105940.0,105930.0,0.03785299]
[1762819868217,1.33286065,105940.0,105930.0,0.06120299]
[1762819868920,1.33286065,105940.0,105930.0,0.06340102]
[1762819870516,1.33286065,105940.0,105930.0,0.01891102]
[1762819870716,1.33286065,105940.0,105930.0,0.01671299]
[1762819871021,1.33286065,105940.0,105930.0,0.00329299]
[1762819872218,1.33286065,105940.0,105930.0,0.01671299]
[1762819872418,1.33286065,105940.0,105930.0,0.00329299]
[1762819873219,1.33286065,105940.0,105930.0,0.01671299]
[1762819873521,1.33286065,105940.0,105930.0,0.00329299]
[1762819874113,1.33286065,105940.0,105900.0,0.03579606]
[1762819874114,0.0944518,105910.0,105900.0,0.03579606]
[1762819874312,1.33297995,105910.0,105900.0,0.06034409]